fUST/lending_fUST_20260113
["ID","MTS","AMOUNT","RATE_DAILY","PERIOD"]
[401505182,1768279968768,500.0,0.00030136,120]
[401505183,1768279969036,500.0,0.00030136,120]
[401505184,1768279969330,500.0,0.00030136,120]
[401505185,1768279969591,500.0,0.00030136,120]
[401505186,1768279969873,500.0,0.00030136,120]
[401505187,1768279970481,500.0,0.00030136,120]
[401505188,1768279970734,500.0,0.00030136,120]
[401505189,1768279971003,178.1,0.00030136,120]
[401505191,1768279982130,500.0,0.00030136,120]
[401505192,1768279982429,500.0,0.00030136,120]
[401505193,1768279983044,500.0,0.00030136,120]
[401505194,1768279983270,500.0,0.00030136,120]
[401505195,1768279983337,500.0,0.00030136,120]
[401505197,1768279983525,500.0,0.00030136,120]
[401505198,1768279983613,500.0,0.00030136,120]
[401505199,1768279983791,500.0,0.00030136,120]
[401505200,1768279983873,242.6,0.00030136,120]
[401505201,1768279984048,500.0,0.00030136,120]
[401505202,1768279984446,628.69948075,0.00030136,120]
[401505203,1768279992287,500.0,0.00030136,120]
[401505204,1768279992554,500.0,0.00030136,120]
[401505205,1768279992812,500.0,0.00030136,120]
[401505206,1768279993061,500.0,0.00030136,120]
[401505207,1768279993312,500.0,0.00030136,120]
[401505208,1768279993561,500.0,0.00030136,120]
[401505209,1768279993851,500.0,0.00030136,120]
[401505210,1768279994153,500.0,0.00030136,120]
[401505211,1768279994399,500.0,0.00030136,120]
[401505212,1768279994814,500.0,0.00030136,120]
[401505213,1768279994941,500.0,0.00030136,120]
[401505214,1768279995202,500.0,0.00030136,120]
[401505215,1768279995453,500.0,0.00030136,120]
[401505216,1768279995708,500.0,0.00030136,120]
[401505217,1768279995948,500.0,0.00030136,120]
[401505218,1768279996283,500.0,0.00030136,120]
[401505219,1768279996546,500.0,0.00030136,120]
[401505220,1768279996800,500.0,0.00030136,120]
[401505221,1768279997075,500.0,0.00030136,120]
[401505222,1768279997453,500.0,0.00030136,120]
[401505223,1768279997710,500.0,0.00030136,120]
[401505224,1768279998010,172.64,0.00030136,120]
[401505225,1768280002933,500.0,0.00030136,120]
[401505226,1768280003182,500.0,0.00030136,120]
[401505227,1768280003457,500.0,0.00030136,120]
[401505228,1768280003701,500.0,0.00030136,120]
[401505229,1768280004048,500.0,0.00030136,120]
[401505230,1768280004374,500.0,0.00030136,120]
[401505231,1768280004659,500.0,0.00030136,120]
[401505232,1768280005120,500.0,0.00030136,120]
[401505233,1768280005413,500.0,0.00030136,120]
[401505234,1768280005695,500.0,0.00030136,120]
[401505235,1768280005965,500.0,0.00030136,120]
[401505236,1768280006216,500.0,0.00030136,120]
[401505237,1768280006475,500.0,0.00030136,120]
[401505238,1768280006745,500.0,0.00030136,120]
[401505239,1768280007030,500.0,0.00030136,120]
[401505240,1768280007859,500.0,0.00030136,120]
[401505241,1768280007908,500.0,0.00030136,120]
[401505242,1768280007970,500.0,0.00030136,120]
[401505243,1768280008013,500.0,0.00030136,120]
[401505244,1768280008098,500.0,0.00030136,120]
[401505245,1768280008194,500.0,0.00030136,120]
[401505246,1768280008360,500.0,0.00030136,120]
[401505247,1768280008446,313.6,0.00030136,120]
[401505248,1768280008623,500.0,0.00030136,120]
[401505249,1768280008931,468.04,0.00030136,120]
[401505250,1768280014885,500.0,0.00030136,120]
[401505251,1768280018201,324.65,0.00030136,120]
[401505252,1768280032692,536.36,0.00030136,120]
[401505253,1768280032930,536.36,0.00030136,120]
[401505254,1768280033191,536.36,0.00030136,120]
[401505255,1768280033454,536.36,0.00030136,120]
[401505256,1768280033693,536.36,0.00030136,120]
[401505257,1768280034136,536.36,0.00030136,120]
[401505258,1768280034399,536.36,0.00030136,120]
[401505259,1768280034657,536.36,0.00030136,120]
[401505260,1768280034889,536.36,0.00030136,120]
[401505261,1768280035141,536.36,0.00030136,120]
[401505262,1768280035390,536.36,0.00030136,120]
[401505263,1768280035802,536.36,0.00030136,120]
[401505264,1768280036128,536.36,0.00030136,120]
[401505265,1768280036378,536.36,0.00030136,120]
[401505266,1768280036642,536.36,0.00030136,120]
[401505267,1768280037194,536.36,0.00030136,120]
[401505268,1768280039940,536.36,0.00030136,120]
[401505269,1768280040252,536.36,0.00030136,120]
[401505270,1768280043740,536.36,0.00030136,120]
[401505271,1768280044342,536.36,0.00030136,120]
[401505272,1768280050458,536.36,0.00030136,120]
[401505273,1768280050720,536.36,0.00030136,120]
[401505274,1768280051186,536.36,0.00030136,120]
[401505275,1768280051471,536.56,0.00030136,120]
[401505276,1768280064944,500.0,0.00030136,120]
[401505277,1768280065221,500.0,0.00030136,120]
[401505278,1768280065615,500.0,0.00030136,120]
[401505279,1768280065932,500.0,0.00030136,120]
[401505280,1768280066199,500.0,0.00030136,120]
[401505281,1768280066465,500.0,0.00030136,120]
[401505282,1768280066726,500.0,0.00030136,120]
[401505283,1768280067004,500.0,0.00030136,120]
[401505284,1768280067281,500.0,0.00030136,120]
[401505285,1768280067530,500.0,0.00030136,120]
[401505286,1768280067821,500.0,0.00030136,120]
[401505287,1768280068084,500.0,0.00030136,120]
[401505288,1768280068349,500.0,0.00030136,120]
[401505289,1768280068716,500.0,0.00030136,120]
[401505290,1768280068980,500.0,0.00030136,120]
[401505291,1768280069249,500.0,0.00030136,120]
[401505292,1768280069508,500.0,0.00030136,120]
[401505293,1768280069752,180.4,0.00030136,120]
[401505294,1768280075845,500.0,0.00030136,120]
[401505295,1768280076118,500.0,0.00030136,120]
[401505296,1768280076378,500.0,0.00030136,120]
[401505297,1768280076669,500.0,0.00030136,120]
[401505298,1768280079960,500.0,0.00030136,120]
[401505299,1768280080234,500.0,0.00030136,120]
[401505300,1768280080823,500.0,0.00030136,120]
[401505301,1768280081092,500.0,0.00030136,120]
[401505302,1768280081370,500.0,0.00030136,120]
[401505303,1768280081635,487.9,0.00030136,120]
[401505304,1768280145502,500.0,0.00030136,120]
[401505305,1768280145780,500.0,0.00030136,120]
[401505306,1768280146049,627.93559167,0.00030136,120]
[401505307,1768280177106,500.0,0.00030136,120]
[401505308,1768280177347,500.0,0.00030136,120]
[401505309,1768280177625,500.0,0.00030136,120]
[401505310,1768280177866,500.0,0.00030136,120]
[401505311,1768280178147,500.0,0.00030136,120]
[401505312,1768280178553,500.0,0.00030136,120]
[401505313,1768280178806,231.9,0.00030136,120]
[401505314,1768280233391,500.0,0.00030136,120]
[401505315,1768280233694,500.0,0.00030136,120]
[401505316,1768280233969,500.0,0.00030136,120]
[401505317,1768280234241,172.37717921,0.00030136,120]
[401505318,1768280243639,500.0,0.00030136,120]
[401505319,1768280243895,209.84975911,0.00030136,120]
[401505320,1768280281409,500.0,0.00030136,120]
[401505321,1768280281675,414.36767,0.00030136,120]
[401505323,1768280326990,500.0,0.00030136,120]
[401505324,1768280327235,500.0,0.00030136,120]
[401505325,1768280327488,500.0,0.00030136,120]
[401505326,1768280327777,500.0,0.00030136,120]
[401505327,1768280328024,500.0,0.00030136,120]
[401505328,1768280404328,500.0,0.00030136,120]
[401505329,1768280404594,500.0,0.00030136,120]
[401505330,1768280404981,500.0,0.00030136,120]
[401505331,1768280405197,686.41,5e-05,2]
[401505332,1768280405303,500.0,0.00030136,120]
[401505333,1768280405688,686.41,5.1e-05,2]
[401505334,1768280406173,686.41,5.2e-05,2]
[401505335,1768280406812,686.41,5.3e-05,2]
[401505336,1768280407387,686.41,5.4e-05,2]
[401505337,1768280407944,686.41,5.5e-05,2]
[401505338,1768280408740,686.41,5.6e-05,2]
[401505339,1768280409399,686.41,5.6e-05,2]
[401505340,1768280409958,686.41,5.7e-05,2]
[401505341,1768280410456,686.41,5.8e-05,2]
[401505342,1768280411101,686.41,5.9e-05,2]
[401505343,1768280411631,686.41,6e-05,2]
[401505344,1768280412327,475.09,6.1e-05,2]
[401505345,1768280412355,211.32,6.1e-05,2]
[401505346,1768280412788,686.41,6.2e-05,2]
[401505347,1768280413446,686.41,6.3e-05,2]
[401505348,1768280413907,686.41,6.4e-05,2]
[401505349,1768280414470,686.41,6.5e-05,2]
[401505350,1768280414955,686.41,6.6e-05,2]
[401505351,1768280415439,686.41,6.7e-05,2]
[401505352,1768280415908,686.41,6.7e-05,2]
[401505353,1768280416493,686.41,6.8e-05,2]
[401505354,1768280417586,686.41,6.9e-05,2]
[401505355,1768280418179,686.41,7e-05,2]
[401505356,1768280418877,686.41,7.1e-05,2]
[401505357,1768280419391,686.41,7.2e-05,2]
[401505358,1768280419756,686.41,7.3e-05,2]
[401505359,1768280419862,500.0,0.00030136,120]
[401505360,1768280420113,500.0,0.00030136,120]
[401505361,1768280420332,686.41,7.4e-05,2]
[401505362,1768280420382,500.0,0.00030136,120]
[401505363,1768280420645,500.0,0.00030136,120]
[401505364,1768280420906,253.68,0.00030136,120]
[401505365,1768280420944,178.95,7.5e-05,2]
[401505366,1768280420968,507.46,7.5e-05,2]
[401505367,1768280421563,686.41,7.6e-05,2]
[401505368,1768280422199,686.41,7.7e-05,2]
[401505369,1768280422780,686.41,7.8e-05,2]
[401505370,1768280423342,686.41,7.8e-05,2]
[401505371,1768280423912,686.41,7.9e-05,2]
[401505372,1768280424487,686.41,8e-05,2]
[401505373,1768280425111,686.41,8.1e-05,2]
[401505374,1768280425620,686.41,8.2e-05,2]
[401505375,1768280426711,686.41,8.3e-05,2]
[401505376,1768280427293,686.41,8.4e-05,2]
[401505377,1768280427772,686.41,8.5e-05,2]
[401505378,1768280428353,686.41,8.6e-05,2]
[401505379,1768280428851,686.41,8.7e-05,2]
[401505380,1768280429467,569.22,8.8e-05,2]
[401505381,1768280429489,117.19,8.8e-05,2]
[401505382,1768280430051,686.41,8.9e-05,2]
[401505383,1768280430610,686.41,8.9e-05,2]
[401505384,1768280430786,500.0,0.00030136,120]
[401505385,1768280431077,500.0,0.00030136,120]
[401505386,1768280431178,686.41,9e-05,2]
[401505387,1768280431460,500.0,0.00030136,120]
[401505388,1768280431655,686.41,9.1e-05,2]
[401505389,1768280431734,163.54015018,0.00030136,120]
[401505390,1768280432144,686.41,9.2e-05,2]
[401505391,1768280432736,686.41,9.3e-05,2]
[401505392,1768280433253,686.41,9.4e-05,2]
[401505393,1768280435544,502.85620445,0.00030136,120]
[401505394,1768280437572,323.35596972,0.00030136,120]
[401505395,1768280461663,500.0,0.00030136,120]
[401505398,1768280834266,11.29735026,0.00024074,110]
[401505399,1768280834289,162.69330909,0.00024074,110]
[401505400,1768281004376,171.55,5e-05,2]
[401505401,1768281004972,171.55,6.5e-05,2]
[401505402,1768281005522,171.55,8e-05,2]
[401505403,1768281006717,171.55,9.5e-05,2]
[401505443,1768281031789,-335.96,9.99e-05,2]
[401505445,1768281031798,-335.96,9.99e-05,2]
[401505446,1768281031808,-335.96,9.99e-05,2]
[401505449,1768281031818,-52.57957871,9.99e-05,2]
[401505608,1768281037916,-507.42042129,9.99e-05,2]
[401505609,1768281037926,-369.48387275,0.00010118,2]
[401505610,1768281037936,-593.0,0.00010244,2]
[401505611,1768281038062,-2168.7213751,0.00010245,2]
[401505612,1768281038072,-300.0,0.00010552,2]
[401505613,1768281038082,-300.0,0.00010553,2]
[401505614,1768281038091,-300.0,0.00010553,2]
[401505615,1768281038100,-300.0,0.00010553,2]
[401505616,1768281038110,-300.0,0.00010553,2]
[401505617,1768281038119,-30000.0,0.00010554,2]
[401505618,1768281038128,-300.0,0.00010764,2]
[401505619,1768281038139,-300.0,0.00010764,2]
[401505620,1768281038148,-300.0,0.00010764,2]
[401505621,1768281038158,-300.0,0.00010764,2]
[401505622,1768281038168,-300.0,0.00010764,2]
[401505623,1768281038178,-300.0,0.00010764,2]
[401505624,1768281038187,-300.0,0.00010764,2]
[401505625,1768281038197,-300.0,0.00010764,2]
[401505626,1768281038207,-300.0,0.00010764,2]
[401505627,1768281038217,-300.0,0.00010764,2]
[401505628,1768281038227,-300.0,0.00010764,2]
[401505629,1768281038237,-300.0,0.00010764,2]
[401505630,1768281038249,-300.0,0.00010764,2]
[401505631,1768281038260,-300.0,0.00010764,2]
[401505632,1768281038270,-300.0,0.00010764,2]
[401505633,1768281038282,-600.0,0.00010978,2]
[401505634,1768281038292,-266.61965482,0.00011058,2]
[401505635,1768281038305,-248.51492197,0.00011074,2]
[401505636,1768281038316,-153.00266868,0.00011074,2]
[401505637,1768281038333,-154.87231411,0.00011074,2]
[401505638,1768281038344,-160.52783475,0.00011074,2]
[401505639,1768281038355,-31110.0,0.00011102,2]
[401505640,1768281038366,-2030.296672,0.00011158,2]
[401505641,1768281038376,-2398.4119403,0.00011158,2]
[401505642,1768281038386,-2924.92751597,0.00011162,2]
[401505643,1768281038396,-154.912,0.00011164,2]
[401505644,1768281038407,-2105.41764886,0.00011213,2]
[401505645,1768281038416,-3325.28151263,0.00011232,2]
[401505646,1768281038429,-7801.46361737,0.00011232,2]
[401505647,1768281038447,-22118.04024479,0.00011232,2]
[401505648,1768281038460,-10787.20133781,0.00011232,2]
[401505649,1768281038473,-2411.9880026,0.00011232,2]
[401505650,1768281038484,-2351.74,0.00011255,2]
[401505651,1768281038494,-2183.31810187,0.00011268,2]
[401505652,1768281038504,-13801.54528684,0.0001129,2]
[401505653,1768281038515,-1742.59199083,0.00011323,2]
[401505654,1768281038525,-162.11198798,0.00011348,2]
[401505655,1768281038535,-181.08010149,0.00011348,2]
[401505656,1768281038546,-187.78006525,0.00011348,2]
[401505657,1768281038555,-194.72792766,0.00011348,2]
[401505658,1768281038566,-201.93286099,0.00011348,2]
[401505659,1768281038576,-209.40437684,0.00011348,2]
[401505660,1768281038586,-217.15233878,0.00011348,2]
[401505661,1768281038596,-225.18697532,0.00011348,2]
[401505662,1768281038606,-233.51889341,0.00011348,2]
[401505663,1768281038616,-242.15909246,0.00011348,2]
[401505664,1768281038625,-251.11897888,0.00011348,2]
[401505665,1768281038635,-260.4103811,0.00011348,2]
[401505666,1768281038645,-270.0455652,0.00011348,2]
[401505667,1768281038656,-280.03725112,0.00011348,2]
[401505668,1768281038667,-290.39862941,0.00011348,2]
[401505669,1768281038677,-301.1433787,0.00011348,2]
[401505670,1768281038693,-151.0,0.00011348,2]
[401505671,1768281038703,-151.0,0.00011348,2]
[401505672,1768281038713,-151.0,0.00011348,2]
[401505673,1768281038722,-151.0,0.00011348,2]
[401505674,1768281038732,-151.0,0.00011348,2]
[401505675,1768281038741,-151.0,0.00011348,2]
[401505676,1768281038751,-151.0,0.00011348,2]
[401505677,1768281038761,-151.0,0.00011348,2]
[401505678,1768281038770,-151.0,0.00011348,2]
[401505679,1768281038781,-151.0,0.00011348,2]
[401505680,1768281038790,-151.0,0.00011348,2]
[401505681,1768281038799,-151.0,0.00011348,2]
[401505682,1768281038809,-151.0,0.00011348,2]
[401505683,1768281038819,-151.0,0.00011348,2]
[401505684,1768281038828,-151.0,0.00011348,2]
[401505685,1768281038837,-151.0,0.00011348,2]
[401505686,1768281038847,-151.0,0.00011348,2]
[401505687,1768281038856,-268.44453471,0.00011348,2]
[401505688,1768281038867,-151.0,0.00011348,2]
[401505689,1768281038879,-151.0,0.00011348,2]
[401505690,1768281038891,-151.0,0.00011348,2]
[401505691,1768281038904,-151.0,0.00011348,2]
[401505692,1768281038917,-151.0,0.00011348,2]
[401505693,1768281038927,-151.0,0.00011348,2]
[401505694,1768281038943,-151.0,0.00011348,2]
[401505695,1768281038953,-151.0,0.00011348,2]
[401505696,1768281038963,-151.0,0.00011348,2]
[401505697,1768281038973,-151.0,0.00011348,2]
[401505698,1768281038985,-151.0,0.00011348,2]
[401505699,1768281038995,-151.0,0.00011348,2]
[401505700,1768281039004,-153.56977001,0.00011348,2]
[401505701,1768281039014,-151.0,0.00011348,2]
[401505702,1768281039024,-252.38140439,0.00011348,2]
[401505703,1768281039035,-151.0,0.00011348,2]
[401505704,1768281039045,-151.0,0.00011348,2]
[401505705,1768281039056,-151.0,0.00011348,2]
[401505706,1768281039066,-151.0,0.00011348,2]
[401505707,1768281039076,-151.0,0.00011348,2]
[401505708,1768281039086,-151.0,0.00011348,2]
[401505709,1768281039096,-496.47127164,0.00011348,2]
[401505710,1768281039107,-151.0,0.00011348,2]
[401505711,1768281039117,-151.0,0.00011348,2]
[401505712,1768281039128,-151.0,0.00011348,2]
[401505713,1768281039138,-250.0,0.00011348,2]
[401505714,1768281039148,-250.0,0.00011348,2]
[401505715,1768281039159,-250.0,0.00011348,2]
[401505716,1768281039169,-250.0,0.00011348,2]
[401505717,1768281039179,-250.0,0.00011348,2]
[401505718,1768281039191,-250.0,0.00011348,2]
[401505719,1768281039200,-250.0,0.00011348,2]
[401505720,1768281039210,-250.0,0.00011348,2]
[401505721,1768281039220,-250.0,0.00011348,2]
[401505722,1768281039229,-250.0,0.00011348,2]
[401505723,1768281039240,-250.0,0.00011348,2]
[401505724,1768281039249,-5103.15491327,0.0001135,2]
[401505725,1768281039259,-500.0,0.00011354,2]
[401505726,1768281039268,-487.7196928,0.00011354,2]
[401505727,1768281039277,-500.0,0.00011354,2]
[401505728,1768281039287,-500.0,0.00011354,2]
[401505729,1768281039296,-500.0,0.00011354,2]
[401505730,1768281039306,-193.33976514,0.00011354,2]
[401505731,1768281039315,-500.0,0.00011354,2]
[401505732,1768281039325,-500.0,0.00011354,2]
[401505733,1768281039334,-500.0,0.00011354,2]
[401505734,1768281039344,-500.0,0.00011354,2]
[401505735,1768281039354,-542.37851933,0.00011354,2]
[401505736,1768281039363,-500.0,0.00011354,2]
[401505738,1768281039373,-500.0,0.00011354,2]
[401505740,1768281039383,-386.45082189,0.00011354,2]
[401505741,1768281039393,-500.0,0.00011354,2]
[401505742,1768281039403,-500.0,0.00011354,2]
[401505743,1768281039412,-500.0,0.00011354,2]
[401505744,1768281039422,-500.0,0.00011354,2]
[401505745,1768281039432,-500.0,0.00011354,2]
[401505746,1768281039442,-500.0,0.00011354,2]
[401505747,1768281039451,-500.0,0.00011354,2]
[401505748,1768281039461,-500.0,0.00011354,2]
[401505749,1768281039470,-500.0,0.00011354,2]
[401505750,1768281039480,-500.0,0.00011354,2]
[401505751,1768281039490,-500.0,0.00011354,2]
[401505752,1768281039500,-500.0,0.00011354,2]
[401505753,1768281039509,-500.0,0.00011354,2]
[401505754,1768281039519,-500.0,0.00011354,2]
[401505755,1768281039528,-500.0,0.00011354,2]
[401505756,1768281039538,-500.0,0.00011354,2]
[401505758,1768281039547,-500.0,0.00011354,2]
[401505759,1768281039557,-500.0,0.00011354,2]
[401505760,1768281039567,-500.0,0.00011354,2]
[401505761,1768281039576,-500.0,0.00011354,2]
[401505762,1768281039585,-500.0,0.00011354,2]
[401505763,1768281039595,-500.0,0.00011354,2]
[401505765,1768281039605,-500.0,0.00011354,2]
[401505766,1768281039614,-500.0,0.00011354,2]
[401505767,1768281039624,-500.0,0.00011354,2]
[401505768,1768281039634,-500.0,0.00011354,2]
[401505769,1768281039643,-500.0,0.00011354,2]
[401505770,1768281039652,-500.0,0.00011354,2]
[401505771,1768281039661,-500.0,0.00011354,2]
[401505772,1768281039671,-500.0,0.00011354,2]
[401505773,1768281039682,-500.0,0.00011354,2]
[401505774,1768281039691,-500.0,0.00011354,2]
[401505775,1768281039701,-500.0,0.00011354,2]
[401505776,1768281039710,-500.0,0.00011354,2]
[401505777,1768281039719,-500.0,0.00011354,2]
[401505778,1768281039729,-500.0,0.00011354,2]
[401505779,1768281039739,-500.0,0.00011354,2]
[401505780,1768281039748,-500.0,0.00011354,2]
[401505781,1768281039757,-500.0,0.00011354,2]
[401505783,1768281039767,-500.0,0.00011354,2]
[401505785,1768281039776,-500.0,0.00011354,2]
[401505786,1768281039785,-500.0,0.00011354,2]
[401505787,1768281039796,-500.0,0.00011354,2]
[401505788,1768281039805,-500.0,0.00011354,2]
[401505789,1768281039814,-500.0,0.00011354,2]
[401505790,1768281039824,-500.0,0.00011354,2]
[401505791,1768281039835,-264.55409593,0.00011354,2]
[401505792,1768281039844,-500.0,0.00011354,2]
[401505793,1768281039854,-500.0,0.00011354,2]
[401505794,1768281039863,-500.0,0.00011354,2]
[401505795,1768281039873,-500.0,0.00011354,2]
[401505797,1768281039883,-500.0,0.00011354,2]
[401505799,1768281039892,-500.0,0.00011354,2]
[401505801,1768281039904,-500.0,0.00011354,2]
[401505803,1768281039913,-500.0,0.00011354,2]
[401505804,1768281039923,-500.0,0.00011354,2]
[401505806,1768281039932,-500.0,0.00011354,2]
[401505808,1768281039942,-500.0,0.00011354,2]
[401505810,1768281039952,-500.0,0.00011354,2]
[401505812,1768281039961,-500.0,0.00011354,2]
[401505814,1768281039972,-500.0,0.00011354,2]
[401505815,1768281039982,-500.0,0.00011354,2]
[401505817,1768281039991,-500.0,0.00011354,2]
[401505819,1768281040000,-500.0,0.00011354,2]
[401505821,1768281040009,-500.0,0.00011354,2]
[401505822,1768281040019,-480.57237722,0.00011354,2]
[401505824,1768281040028,-500.0,0.00011354,2]
[401505826,1768281040037,-500.0,0.00011354,2]
[401505828,1768281040046,-500.0,0.00011354,2]
[401505830,1768281040056,-500.0,0.00011354,2]
[401505831,1768281040066,-500.0,0.00011354,2]
[401505833,1768281040076,-500.0,0.00011354,2]
[401505835,1768281040086,-500.0,0.00011354,2]
[401505837,1768281040095,-500.0,0.00011354,2]
[401505839,1768281040106,-500.0,0.00011354,2]
[401505841,1768281040115,-500.0,0.00011354,2]
[401505842,1768281040125,-1000000.0,0.00011355,2]
[401505844,1768281040135,-151.0,0.000114,2]
[401505846,1768281040144,-151.0,0.000114,2]
[401505848,1768281040154,-151.0,0.000114,2]
[401505850,1768281040163,-151.0,0.000114,2]
[401505852,1768281040172,-151.0,0.000114,2]
[401505853,1768281040182,-151.0,0.000114,2]
[401505855,1768281040191,-151.0,0.000114,2]
[401505857,1768281040200,-151.0,0.000114,2]
[401505859,1768281040210,-151.0,0.000114,2]
[401505861,1768281040219,-151.0,0.000114,2]
[401505863,1768281040228,-151.0,0.000114,2]
[401505864,1768281040237,-151.0,0.000114,2]
[401505866,1768281040246,-151.0,0.000114,2]
[401505868,1768281040255,-151.0,0.000114,2]
[401505870,1768281040264,-151.0,0.000114,2]
[401505872,1768281040274,-151.0,0.000114,2]
[401505873,1768281040283,-151.0,0.000114,2]
[401505875,1768281040292,-151.0,0.000114,2]
[401505877,1768281040301,-221.0,0.000115,2]
[401505879,1768281040311,-420.0,0.00011602,2]
[401505881,1768281040320,-221.0,0.00011609,2]
[401505883,1768281040330,-500.0,0.00011628,2]
[401505885,1768281040339,-32261.07,0.0001165,2]
[401505886,1768281040348,-2487.15318209,0.00011706,2]
[401505888,1768281040358,-1066.06115656,0.00011755,2]
[401505890,1768281040368,-202.73504251,0.00011759,2]
[401505901,1768281040473,-152.24595726,0.00011759,2]
[401505903,1768281040484,-151.0,0.00011896,2]
[401505905,1768281040494,-514.84070869,0.00011896,2]
[401505907,1768281040503,-500.0,0.00011902,2]
[401505909,1768281040512,-1000.0,0.00012,2]
[401505910,1768281040522,-500.0,0.00012046,2]
[401505912,1768281040531,-163.57645689,0.00012046,2]
[401505914,1768281040540,-720.0,0.00012076,2]
[401505916,1768281040549,-435.99096985,0.00012118,2]
[401505918,1768281040559,-500.0,0.00012176,2]
[401505920,1768281040568,-153.13351023,0.00012183,2]
[401505922,1768281040577,-618.69740254,0.00012183,2]
[401505923,1768281040586,-33454.72959,0.00012198,2]
[401505925,1768281040595,-2579.17784983,0.00012254,2]
[401505927,1768281040604,-752.25,0.00012329,2]
[401505929,1768281040616,-500.0,0.00012329,2]
[401505931,1768281040626,-500.0,0.00012329,2]
[401505933,1768281040635,-226.08215177,0.00012329,2]
[401505935,1768281040645,-151.0,0.00012444,2]
[401505937,1768281040654,-533.88981491,0.00012444,2]
[401505939,1768281040663,-500.0,0.0001245,2]
[401505941,1768281040672,-211.78752149,0.00012504,2]
[401505942,1768281040684,-2411.9880026,0.00012507,2]
[401505944,1768281040693,-418.96450102,0.00012617,2]
[401505946,1768281040704,-500.0,0.00012724,2]
[401505948,1768281040714,-34692.55458483,0.00012746,2]
[401505950,1768281040723,-587.0,0.00012755,2]
[401505952,1768281040733,-2674.60743027,0.00012802,2]
[401505954,1768281040743,-406.71673063,0.00012852,2]
[401505956,1768281040752,-6030.78482045,0.000129,2]
[401505958,1768281040761,-793.69503397,0.00012985,2]
[401505959,1768281040770,-151.0,0.00012992,2]
[401505961,1768281040780,-553.64373807,0.00012992,2]
[401505963,1768281040789,-1000.0,0.00012999,2]
[401505965,1768281040798,-44031.9867126,0.00013151,2]
[401505967,1768281040807,-250.0,0.000132,2]
[401505969,1768281040816,-500.0,0.00013273,2]
[401505971,1768281040825,-150.76888394,0.00013273,2]
[401505972,1768281040834,-501.90773832,0.00013273,2]
[401505974,1768281040843,-501.70182387,0.00013273,2]
[401505976,1768281040852,-503.71402261,0.00013273,2]
[401505978,1768281040861,-500.0,0.00013273,2]
[401505980,1768281040870,-501.35371078,0.00013273,2]
[401505982,1768281040879,-500.0,0.00013273,2]
[401505984,1768281040889,-500.0,0.00013273,2]